[Event "*** SCC Grand Prix: Titled Tuesday Blitz"]
[Site "Chess.com"]
[Date "2020.06.23"]
[Round "8"]
[White "Vaathi_Coming"]
[Black "SergeyKarjakin"]
[Result "1-0"]
[WhiteElo "2868"]
[BlackElo "2948"]
[TimeControl "180+1"]
[EndTime "11:38:18 PDT"]
[Termination "Vaathi_Coming won on time"]

1. Nf3 {[%clk 0:03:00.9]} 1... d5 {[%clk 0:02:58.2]} 2. g3 {[%clk 0:02:59.8]}
2... g6 {[%clk 0:02:58.1]} 3. Bg2 {[%clk 0:02:59.6]} 3... Bg7 {[%clk 0:02:58.6]}
4. d4 {[%clk 0:03:00.2]} 4... Nf6 {[%clk 0:02:57.6]} 5. O-O {[%clk 0:03:00.3]}
5... O-O {[%clk 0:02:58.2]} 6. c3 {[%clk 0:03:00.9]} 6... Nbd7 {[%clk 0:02:46]}
7. a4 {[%clk 0:02:56.9]} 7... a5 {[%clk 0:02:43.1]} 8. Bf4 {[%clk 0:02:47.5]}
8... b6 {[%clk 0:02:28.5]} 9. Ne5 {[%clk 0:02:38.3]} 9... Bb7 {[%clk 0:02:26.7]}
10. Nxd7 {[%clk 0:02:23.6]} 10... Nxd7 {[%clk 0:02:21.2]} 11. Na3 {[%clk
0:02:23]} 11... e6 {[%clk 0:01:57.2]} 12. Re1 {[%clk 0:02:13.1]} 12... Nf6
{[%clk 0:01:49.7]} 13. Qb3 {[%clk 0:01:24.6]} 13... Nh5 {[%clk 0:01:45.5]} 14.
Bd2 {[%clk 0:01:24.2]} 14... Nf6 {[%clk 0:01:42]} 15. Rad1 {[%clk 0:01:14.5]}
15... Rc8 {[%clk 0:01:36.3]} 16. Bf4 {[%clk 0:01:12.6]} 16... Nh5 {[%clk
0:01:35.4]} 17. Bc1 {[%clk 0:01:11.8]} 17... Nf6 {[%clk 0:01:29.6]} 18. f3
{[%clk 0:01:11.6]} 18... c5 {[%clk 0:01:04.2]} 19. dxc5 {[%clk 0:01:07.7]} 19...
Rxc5 {[%clk 0:01:01.9]} 20. e4 {[%clk 0:01:08.1]} 20... Nd7 {[%clk 0:00:57.4]}
21. Be3 {[%clk 0:01:06.3]} 21... Rc8 {[%clk 0:00:39.8]} 22. Nb5 {[%clk
0:01:05.8]} 22... Nc5 {[%clk 0:00:37]} 23. Qa3 {[%clk 0:00:59.6]} 23... Qe7
{[%clk 0:00:33.1]} 24. e5 {[%clk 0:00:17.3]} 24... Bc6 {[%clk 0:00:27.7]} 25.
Nd6 {[%clk 0:00:10]} 25... Rb8 {[%clk 0:00:27.2]} 26. f4 {[%clk 0:00:09.6]}
26... Nxa4 {[%clk 0:00:21.7]} 27. c4 {[%clk 0:00:08.6]} 27... Nc5 {[%clk
0:00:16.2]} 28. Bxc5 {[%clk 0:00:07.9]} 28... bxc5 {[%clk 0:00:15.8]} 29. Qxc5
{[%clk 0:00:08.8]} 29... Ba8 {[%clk 0:00:14.2]} 30. cxd5 {[%clk 0:00:08.7]}
30... Rxb2 {[%clk 0:00:13.8]} 31. Qxa5 {[%clk 0:00:03.9]} 31... exd5 {[%clk
0:00:07.8]} 32. Bxd5 {[%clk 0:00:04.8]} 32... Bxd5 {[%clk 0:00:06.4]} 33. Rxd5
{[%clk 0:00:02.8]} 33... Qe6 {[%clk 0:00:05.4]} 34. Rd2 {[%clk 0:00:02.3]} 34...
Rb3 {[%clk 0:00:04.3]} 35. Qc5 {[%clk 0:00:01.7]} 35... h5 {[%clk 0:00:03.4]}
36. Qd5 {[%clk 0:00:02]} 36... Qxd5 {[%clk 0:00:01.8]} 37. Rxd5 {[%clk
0:00:02.9]} 37... Rfb8 {[%clk 0:00:02.5]} 38. Red1 {[%clk 0:00:02.7]} 38... Bf8
{[%clk 0:00:02.5]} 39. Ne4 {[%clk 0:00:02.8]} 39... Rb2 {[%clk 0:00:02.6]} 40.
Rd7 {[%clk 0:00:02.1]} 40... Re2 {[%clk 0:00:01.8]} 41. Nf6+ {[%clk 0:00:01.4]}
41... Kg7 {[%clk 0:00:02]} 42. R7d2 {[%clk 0:00:01.6]} 42... Bc5+ {[%clk
0:00:01]} 43. Kf1 {[%clk 0:00:01.4]} 43... Rxd2 {[%clk 0:00:01.9]} 44. Rxd2
{[%clk 0:00:02.1]} 44... Be7 {[%clk 0:00:02.8]} 45. Ne4 {[%clk 0:00:02]} 45...
Rb1+ {[%clk 0:00:03.3]} 46. Kg2 {[%clk 0:00:02]} 46... Rb4 {[%clk 0:00:04.2]}
47. Nf2 {[%clk 0:00:02.4]} 47... Rb7 {[%clk 0:00:04.2]} 48. Re2 {[%clk
0:00:02.7]} 48... Bc5 {[%clk 0:00:04.3]} 49. Ne4 {[%clk 0:00:02.3]} 49... Be7
{[%clk 0:00:04.9]} 50. Rc2 {[%clk 0:00:03]} 50... Ra7 {[%clk 0:00:05.3]} 51. Kf3
{[%clk 0:00:03.4]} 51... Ra4 {[%clk 0:00:05.8]} 52. Rc7 {[%clk 0:00:02.9]} 52...
Ra3+ {[%clk 0:00:06.2]} 53. Kg2 {[%clk 0:00:03.2]} 53... Kf8 {[%clk 0:00:06.6]}
54. Rc8+ {[%clk 0:00:03.1]} 54... Kg7 {[%clk 0:00:06]} 55. Rc7 {[%clk
0:00:03.7]} 55... Kf8 {[%clk 0:00:06]} 56. Rb7 {[%clk 0:00:04.4]} 56... Ra4
{[%clk 0:00:06]} 57. Nf2 {[%clk 0:00:04.3]} 57... Ra2 {[%clk 0:00:05.6]} 58. Kf3
{[%clk 0:00:04.6]} 58... Ra3+ {[%clk 0:00:05.8]} 59. Kg2 {[%clk 0:00:04.4]}
59... Ra2 {[%clk 0:00:06]} 60. Rc7 {[%clk 0:00:04]} 60... Bb4 {[%clk 0:00:05.4]}
61. Kf3 {[%clk 0:00:03.9]} 61... Ra3+ {[%clk 0:00:05.5]} 62. Ke4 {[%clk
0:00:03.5]} 62... Ra2 {[%clk 0:00:06]} 63. Nd3 {[%clk 0:00:03.8]} 63... Be7
{[%clk 0:00:06.4]} 64. Rc8+ {[%clk 0:00:04.1]} 64... Kg7 {[%clk 0:00:06]} 65.
Rc7 {[%clk 0:00:04.6]} 65... Kf8 {[%clk 0:00:06]} 66. h3 {[%clk 0:00:03.5]}
66... Ra4+ {[%clk 0:00:05.2]} 67. Kf3 {[%clk 0:00:03.4]} 67... Ra3 {[%clk
0:00:06.1]} 68. Ke4 {[%clk 0:00:03.3]} 68... Bd8 {[%clk 0:00:05.4]} 69. Rd7
{[%clk 0:00:02.8]} 69... Ke8 {[%clk 0:00:05.1]} 70. Rb7 {[%clk 0:00:03.3]} 70...
Ra4+ {[%clk 0:00:04.7]} 71. Ke3 {[%clk 0:00:02.9]} 71... Ra3 {[%clk 0:00:04.5]}
72. Kd4 {[%clk 0:00:03.4]} 72... Ra4+ {[%clk 0:00:04]} 73. Rb4 {[%clk
0:00:03.1]} 73... Ra3 {[%clk 0:00:03.8]} 74. Ke4 {[%clk 0:00:03.5]} 74... Kf8
{[%clk 0:00:03.2]} 75. Rc4 {[%clk 0:00:03.2]} 75... Be7 {[%clk 0:00:02.6]} 76.
Rc8+ {[%clk 0:00:03.3]} 76... Kg7 {[%clk 0:00:01.7]} 77. Rc4 {[%clk 0:00:03.5]}
77... Kf8 {[%clk 0:00:01.7]} 78. g4 {[%clk 0:00:03.9]} 78... hxg4 {[%clk
0:00:01.1]} 79. hxg4 {[%clk 0:00:04.8]} 79... Ra1 {[%clk 0:00:02]} 80. f5 {[%clk
0:00:04.8]} 80... gxf5+ {[%clk 0:00:01.6]} 81. gxf5 {[%clk 0:00:05.7]} 81... Rf1
{[%clk 0:00:02.5]} 82. Rc8+ {[%clk 0:00:04.5]} 82... Kg7 {[%clk 0:00:02.5]} 83.
Rc7 {[%clk 0:00:05.4]} 83... Kf8 {[%clk 0:00:02.4]} 84. Rb7 {[%clk 0:00:05.7]}
84... Bg5 {[%clk 0:00:02.1]} 85. Rb8+ {[%clk 0:00:03.9]} 85... Kg7 {[%clk
0:00:02.2]} 86. Rb7 {[%clk 0:00:04.8]} 86... Kf8 {[%clk 0:00:01.7]} 87. Rc7
{[%clk 0:00:02.9]} 87... Kg8 {[%clk 0:00:01.6]} 88. Rc8+ {[%clk 0:00:02.8]}
88... Kg7 {[%clk 0:00:01.8]} 89. Rc2 {[%clk 0:00:03.7]} 89... Kf8 {[%clk
0:00:01.5]} 90. Rg2 {[%clk 0:00:03.9]} 90... Bh4 {[%clk 0:00:01.6]} 91. Rh2
{[%clk 0:00:03.5]} 91... Bg5 {[%clk 0:00:01.8]} 92. Rf2 {[%clk 0:00:03.4]} 1-0

[Event "*** SCC Grand Prix: Titled Tuesday Blitz"]
[Site "Chess.com"]
[Date "2020.06.23"]
[Round "8"]
[White "AungTZ"]
[Black "Falia-p"]
[Result "0-1"]
[WhiteElo "2089"]
[BlackElo "2243"]
[TimeControl "180+1"]
[EndTime "11:38:32 PDT"]
[Termination "Falia-p won on time"]

1. e4 {[%clk 0:03:00.9]} 1... c6 {[%clk 0:02:58.9]} 2. d4 {[%clk 0:02:57.9]}
2... d5 {[%clk 0:02:59.8]} 3. Nc3 {[%clk 0:02:58]} 3... dxe4 {[%clk 0:02:59.9]}
4. Nxe4 {[%clk 0:02:57.9]} 4... Nf6 {[%clk 0:03:00.6]} 5. Nxf6+ {[%clk
0:02:57.5]} 5... exf6 {[%clk 0:03:01.5]} 6. Nf3 {[%clk 0:02:58.2]} 6... Bd6
{[%clk 0:03:01]} 7. Bd3 {[%clk 0:02:58.1]} 7... O-O {[%clk 0:03:01.4]} 8. O-O
{[%clk 0:02:58.1]} 8... Re8 {[%clk 0:02:58.5]} 9. h3 {[%clk 0:02:57.6]} 9... Nd7
{[%clk 0:02:55.1]} 10. c4 {[%clk 0:02:56.3]} 10... Nf8 {[%clk 0:02:53.9]} 11.
Be3 {[%clk 0:02:54.4]} 11... Be6 {[%clk 0:02:53.3]} 12. Qd2 {[%clk 0:02:54]}
12... Ng6 {[%clk 0:02:52.3]} 13. Rad1 {[%clk 0:02:49.3]} 13... Rc8 {[%clk
0:02:43.4]} 14. b4 {[%clk 0:02:41.8]} 14... Qd7 {[%clk 0:02:37.2]} 15. h4 {[%clk
0:01:47.2]} 15... Bg4 {[%clk 0:02:26.8]} 16. Bxg6 {[%clk 0:01:33.2]} 16... hxg6
{[%clk 0:02:23.6]} 17. c5 {[%clk 0:01:19.4]} 17... Bb8 {[%clk 0:02:17.6]} 18.
Bf4 {[%clk 0:01:11.5]} 18... Bxf3 {[%clk 0:01:59.4]} 19. gxf3 {[%clk 0:01:09.7]}
19... Qf5 {[%clk 0:01:24.9]} 20. Bxb8 {[%clk 0:01:06.5]} 20... Rxb8 {[%clk
0:01:25.8]} 21. Kg2 {[%clk 0:01:06.4]} 21... Rbd8 {[%clk 0:01:20.5]} 22. Rh1
{[%clk 0:01:00.8]} 22... Rd5 {[%clk 0:01:13.6]} 23. Rh3 {[%clk 0:00:53.4]} 23...
Red8 {[%clk 0:01:04.3]} 24. Qe3 {[%clk 0:00:52.6]} 24... Qe6 {[%clk 0:00:59.9]}
25. h5 {[%clk 0:00:48.8]} 25... gxh5 {[%clk 0:00:54.2]} 26. Rh4 {[%clk
0:00:42.2]} 26... Rg5+ {[%clk 0:00:49.3]} 27. Kf1 {[%clk 0:00:41]} 27... Qc4+
{[%clk 0:00:45.1]} 28. Qd3 {[%clk 0:00:38.4]} 28... Qxa2 {[%clk 0:00:42.5]} 29.
Re4 {[%clk 0:00:36.8]} 29... Qd5 {[%clk 0:00:39.1]} 30. Qe3 {[%clk 0:00:36.3]}
30... Qf5 {[%clk 0:00:35.1]} 31. Ke2 {[%clk 0:00:34.1]} 31... Qd5 {[%clk
0:00:27.5]} 32. Rh1 {[%clk 0:00:33.3]} 32... Qc4+ {[%clk 0:00:24.3]} 33. Qd3
{[%clk 0:00:31.3]} 33... Qxd3+ {[%clk 0:00:22]} 34. Kxd3 {[%clk 0:00:31.3]}
34... a5 {[%clk 0:00:22.4]} 35. Kc4 {[%clk 0:00:28.3]} 35... axb4 {[%clk
0:00:21.9]} 36. Kxb4 {[%clk 0:00:28.5]} 36... Rgd5 {[%clk 0:00:20.9]} 37. Kc4
{[%clk 0:00:27.5]} 37... Kf8 {[%clk 0:00:17.4]} 38. Rb1 {[%clk 0:00:27.9]} 38...
R8d7 {[%clk 0:00:16.1]} 39. Ra1 {[%clk 0:00:27.1]} 39... g6 {[%clk 0:00:15.8]}
40. Ra8+ {[%clk 0:00:26.7]} 40... Kg7 {[%clk 0:00:16.1]} 41. Ree8 {[%clk
0:00:26.7]} 41... Rxd4+ {[%clk 0:00:15.9]} 42. Kc3 {[%clk 0:00:27.2]} 42... Rd3+
{[%clk 0:00:16.2]} 43. Kb4 {[%clk 0:00:27.4]} 43... R7d4+ {[%clk 0:00:15.8]} 44.
Ka5 {[%clk 0:00:26.6]} 44... Ra3+ {[%clk 0:00:16.3]} 45. Kb6 {[%clk 0:00:27]}
45... Rxa8 {[%clk 0:00:16]} 46. Rxa8 {[%clk 0:00:27.9]} 46... Rb4+ {[%clk
0:00:16.6]} 47. Kc7 {[%clk 0:00:27.9]} 47... Rb5 {[%clk 0:00:16.9]} 48. Kd6
{[%clk 0:00:27.9]} 48... f5 {[%clk 0:00:16.4]} 49. Ra1 {[%clk 0:00:28.8]} 49...
h4 {[%clk 0:00:16.3]} 50. Rh1 {[%clk 0:00:28.7]} 50... g5 {[%clk 0:00:16.3]} 51.
f4 {[%clk 0:00:29.6]} 51... f6 {[%clk 0:00:14.8]} 52. fxg5 {[%clk 0:00:29.7]}
52... fxg5 {[%clk 0:00:14.7]} 53. f4 {[%clk 0:00:30.6]} 53... Kg6 {[%clk
0:00:14.4]} 54. fxg5 {[%clk 0:00:30]} 54... Kxg5 {[%clk 0:00:14.7]} 55. Rg1+
{[%clk 0:00:30.9]} 55... Kf4 {[%clk 0:00:14.5]} 56. Rf1+ {[%clk 0:00:30.9]}
56... Kg4 {[%clk 0:00:14.3]} 57. Rg1+ {[%clk 0:00:31]} 57... Kh3 {[%clk
0:00:14.1]} 58. Rg5 {[%clk 0:00:30.8]} 58... f4 {[%clk 0:00:13.5]} 59. Ke5
{[%clk 0:00:30.2]} 59... Rb4 {[%clk 0:00:13.1]} 60. Kd6 {[%clk 0:00:28.3]} 60...
f3 {[%clk 0:00:13]} 61. Rf5 {[%clk 0:00:28.8]} 61... Kg3 {[%clk 0:00:11.8]} 62.
Rg5+ {[%clk 0:00:28.8]} 62... Rg4 {[%clk 0:00:11.9]} 63. Rf5 {[%clk 0:00:27.1]}
63... Rf4 {[%clk 0:00:11.9]} 64. Rg5+ {[%clk 0:00:26.6]} 64... Kh3 {[%clk
0:00:12.1]} 65. Rg1 {[%clk 0:00:25.4]} 65... f2 {[%clk 0:00:12.6]} 66. Ra1
{[%clk 0:00:24.5]} 66... Kg2 {[%clk 0:00:12.8]} 67. Ke5 {[%clk 0:00:25.4]} 67...
f1=Q {[%clk 0:00:11.7]} 68. Rxf1 {[%clk 0:00:25.2]} 68... Rxf1 {[%clk
0:00:11.9]} 69. Kd6 {[%clk 0:00:26.1]} 69... Rf7 {[%clk 0:00:11.3]} 70. Ke5
{[%clk 0:00:25.2]} 70... Rh7 {[%clk 0:00:12.2]} 71. Kf4 {[%clk 0:00:24.9]} 71...
h3 {[%clk 0:00:13.1]} 72. Kg4 {[%clk 0:00:25.6]} 72... h2 {[%clk 0:00:13.5]} 73.
Kf4 {[%clk 0:00:26.5]} 73... h1=Q {[%clk 0:00:13.7]} 74. Kg4 {[%clk 0:00:27.4]}
74... Qh4+ {[%clk 0:00:12.3]} 75. Kf5 {[%clk 0:00:26.9]} 75... Rh5+ {[%clk
0:00:12.5]} 76. Ke6 {[%clk 0:00:27.8]} 76... Qg4+ {[%clk 0:00:12.2]} 77. Kd6
{[%clk 0:00:27.3]} 77... Qg6+ {[%clk 0:00:12.2]} 78. Kc7 {[%clk 0:00:28.2]}
78... Rxc5 {[%clk 0:00:11.7]} 79. Kb6 {[%clk 0:00:29.1]} 79... Rb5+ {[%clk
0:00:11.6]} 80. Kc7 {[%clk 0:00:28.6]} 80... Qf7+ {[%clk 0:00:11.6]} 81. Kb8
{[%clk 0:00:29.5]} 81... c5 {[%clk 0:00:11.8]} 82. Ka7 {[%clk 0:00:29.1]} 82...
Ra5+ {[%clk 0:00:11.5]} 83. Kb8 {[%clk 0:00:30]} 83... Ra8+ {[%clk 0:00:10.8]}
84. Kxa8 {[%clk 0:00:29.4]} 84... b5 {[%clk 0:00:11.7]} 85. Kb8 {[%clk
0:00:29.2]} 85... b4 {[%clk 0:00:12.6]} 86. Kc8 {[%clk 0:00:30.1]} 86... c4
{[%clk 0:00:13.2]} 87. Kd8 {[%clk 0:00:31]} 87... c3 {[%clk 0:00:13.7]} 88. Kc8
{[%clk 0:00:31.9]} 88... c2 {[%clk 0:00:14]} 89. Kb8 {[%clk 0:00:32.8]} 89... b3
{[%clk 0:00:14.2]} 90. Ka8 {[%clk 0:00:33.7]} 90... b2 {[%clk 0:00:14.5]} 91.
Kb8 {[%clk 0:00:34.6]} 91... b1=Q+ {[%clk 0:00:14.8]} 92. Ka8 {[%clk 0:00:35.5]}
92... Qba2+ {[%clk 0:00:14.9]} 93. Kb8 {[%clk 0:00:36.4]} 93... Qaa7+ {[%clk
0:00:14.9]} 94. Kc8 {[%clk 0:00:36.1]} 94... c1=Q+ {[%clk 0:00:15.1]} 0-1

[Event "*** SCC Grand Prix: Titled Tuesday Blitz"]
[Site "Chess.com"]
[Date "2020.06.23"]
[Round "9"]
[White "RusPakhom"]
[Black "Yoshikrov"]
[Result "1-0"]
[WhiteElo "2318"]
[BlackElo "2022"]
[TimeControl "180+1"]
[EndTime "11:41:10 PDT"]
[Termination "RusPakhom won by resignation"]

1. e4 {[%clk 0:03:00.5]} 1... c5 {[%clk 0:02:59.8]} 2. c3 {[%clk 0:03:00.1]}
2... Nf6 {[%clk 0:02:59.3]} 3. e5 {[%clk 0:03:00.2]} 3... Nd5 {[%clk 0:02:59.6]}
4. d4 {[%clk 0:03:01.1]} 4... cxd4 {[%clk 0:02:59.3]} 5. Nf3 {[%clk 0:03:02]}
5... e6 {[%clk 0:02:59.5]} 6. cxd4 {[%clk 0:03:00.8]} 6... d6 {[%clk 0:02:59.9]}
7. Bc4 {[%clk 0:02:59.1]} 7... Nc6 {[%clk 0:02:58.9]} 8. O-O {[%clk 0:02:57.1]}
8... dxe5 {[%clk 0:02:50.8]} 9. dxe5 {[%clk 0:02:56.2]} 9... Be7 {[%clk
0:02:51.2]} 10. Bxd5 {[%clk 0:02:52.5]} 10... Qxd5 {[%clk 0:02:50.8]} 11. Qxd5
{[%clk 0:02:52.1]} 11... exd5 {[%clk 0:02:51.2]} 12. Rd1 {[%clk 0:02:52.4]}
12... Be6 {[%clk 0:02:51.4]} 13. Nc3 {[%clk 0:02:52.6]} 13... Rd8 {[%clk
0:02:49.6]} 14. Be3 {[%clk 0:02:52.3]} 14... O-O {[%clk 0:02:46.4]} 15. Rac1
{[%clk 0:02:52.3]} 15... a6 {[%clk 0:02:45]} 16. Ne2 {[%clk 0:02:45.5]} 16...
Bg4 {[%clk 0:02:40.6]} 17. Ned4 {[%clk 0:02:37.3]} 17... Nxd4 {[%clk 0:02:21.9]}
18. Rxd4 {[%clk 0:02:35]} 18... Rd7 {[%clk 0:02:10.7]} 19. Rxg4 {[%clk
0:02:33.6]} 1-0

[Event "*** SCC Grand Prix: Titled Tuesday Blitz"]
[Site "Chess.com"]
[Date "2020.06.23"]
[Round "9"]
[White "kosmys"]
[Black "levallem"]
[Result "0-1"]
[WhiteElo "1804"]
[BlackElo "2127"]
[TimeControl "180+1"]
[EndTime "11:41:24 PDT"]
[Termination "levallem won by checkmate"]

1. d4 {[%clk 0:03:00.7]} 1... f5 {[%clk 0:02:59.8]} 2. c4 {[%clk 0:02:59.7]}
2... Nf6 {[%clk 0:02:59]} 3. Nc3 {[%clk 0:02:59.6]} 3... e6 {[%clk 0:02:58.4]}
4. e3 {[%clk 0:02:56.8]} 4... c6 {[%clk 0:02:58]} 5. Nf3 {[%clk 0:02:53.9]} 5...
d5 {[%clk 0:02:58.4]} 6. b3 {[%clk 0:02:52.8]} 6... Be7 {[%clk 0:02:57.7]} 7.
Ne5 {[%clk 0:02:52.2]} 7... O-O {[%clk 0:02:56.9]} 8. h4 {[%clk 0:02:36.5]} 8...
Ne4 {[%clk 0:02:30.6]} 9. Nxe4 {[%clk 0:02:24.6]} 9... fxe4 {[%clk 0:02:30.3]}
10. g3 {[%clk 0:02:20.4]} 10... Bb4+ {[%clk 0:02:21.7]} 11. Bd2 {[%clk 0:02:20]}
11... Bd6 {[%clk 0:02:07.3]} 12. Bg2 {[%clk 0:02:11.8]} 12... Qf6 {[%clk
0:02:04.3]} 13. Bc3 {[%clk 0:02:02.2]} 13... Qxf2# {[%clk 0:02:01.6]} 0-1

[Event "*** SCC Grand Prix: Titled Tuesday Blitz"]
[Site "Chess.com"]
[Date "2020.06.23"]
[Round "9"]
[White "Irishchessman16"]
[Black "elamier"]
[Result "0-1"]
[WhiteElo "2433"]
[BlackElo "2341"]
[TimeControl "180+1"]
[EndTime "11:42:05 PDT"]
[Termination "elamier won by resignation"]

1. e4 {[%clk 0:03:00.2]} 1... c5 {[%clk 0:02:59.6]} 2. Nf3 {[%clk 0:02:58.7]}
2... e6 {[%clk 0:03:00]} 3. c3 {[%clk 0:02:54.5]} 3... Nf6 {[%clk 0:02:58.1]} 4.
e5 {[%clk 0:02:53.8]} 4... Nd5 {[%clk 0:02:58.6]} 5. d4 {[%clk 0:02:53.7]} 5...
cxd4 {[%clk 0:02:58.8]} 6. Qxd4 {[%clk 0:02:53]} 6... Nc6 {[%clk 0:02:57.8]} 7.
Qe4 {[%clk 0:02:53.5]} 7... f5 {[%clk 0:02:57.7]} 8. Qe2 {[%clk 0:02:52.9]} 8...
b5 {[%clk 0:02:12.6]} 9. g3 {[%clk 0:02:48.3]} 9... a5 {[%clk 0:02:07.6]} 10.
Bg2 {[%clk 0:02:47.9]} 10... Ba6 {[%clk 0:02:06.8]} 11. O-O {[%clk 0:02:37.4]}
11... a4 {[%clk 0:02:00.6]} 12. Rd1 {[%clk 0:02:31.9]} 12... Be7 {[%clk
0:01:59.4]} 13. Rxd5 {[%clk 0:02:26.8]} 13... exd5 {[%clk 0:01:59]} 14. e6
{[%clk 0:02:25]} 14... dxe6 {[%clk 0:01:52.9]} 15. Qxe6 {[%clk 0:02:23.2]} 15...
Qd6 {[%clk 0:01:52.9]} 16. Qxf5 {[%clk 0:02:22.8]} 16... Qf6 {[%clk 0:01:38.2]}
17. Qxd5 {[%clk 0:02:22.5]} 17... Rd8 {[%clk 0:01:37.4]} 18. Qg5 {[%clk
0:02:06.2]} 18... Rd1+ {[%clk 0:01:34.9]} 0-1

[Event "*** SCC Grand Prix: Titled Tuesday Blitz"]
[Site "Chess.com"]
[Date "2020.06.23"]
[Round "9"]
[White "SantoBlue"]
[Black "IMHansNiemann"]
[Result "0-1"]
[WhiteElo "2793"]
[BlackElo "2966"]
[TimeControl "180+1"]
[EndTime "11:42:07 PDT"]
[Termination "IMHansNiemann won by resignation"]

1. e4 {[%clk 0:03:00.9]} 1... c5 {[%clk 0:02:58]} 2. Nc3 {[%clk 0:02:58.8]} 2...
Nc6 {[%clk 0:02:57.8]} 3. Bb5 {[%clk 0:02:57.1]} 3... g6 {[%clk 0:02:55.1]} 4.
Bxc6 {[%clk 0:02:55.7]} 4... bxc6 {[%clk 0:02:53.3]} 5. d3 {[%clk 0:02:56.6]}
5... Bg7 {[%clk 0:02:52.7]} 6. f4 {[%clk 0:02:56.8]} 6... d6 {[%clk 0:02:47.7]}
7. Nf3 {[%clk 0:02:57]} 7... Nf6 {[%clk 0:02:48.3]} 8. O-O {[%clk 0:02:56.9]}
8... O-O {[%clk 0:02:48.8]} 9. Kh1 {[%clk 0:02:57.1]} 9... Bg4 {[%clk
0:02:39.5]} 10. Qe1 {[%clk 0:02:57]} 10... Bxf3 {[%clk 0:02:32.9]} 11. Rxf3
{[%clk 0:02:57]} 11... Nd7 {[%clk 0:02:33.5]} 12. f5 {[%clk 0:02:52.4]} 12... e6
{[%clk 0:02:33]} 13. Rh3 {[%clk 0:02:49.8]} 13... Ne5 {[%clk 0:02:29.9]} 14. Bh6
{[%clk 0:02:46.9]} 14... Bxh6 {[%clk 0:02:27.7]} 15. Rxh6 {[%clk 0:02:47.1]}
15... Qg5 {[%clk 0:02:28.3]} 16. Rh3 {[%clk 0:02:45.3]} 16... exf5 {[%clk
0:02:16.5]} 17. exf5 {[%clk 0:02:46.2]} 17... Qxf5 {[%clk 0:02:15.6]} 18. Ne4
{[%clk 0:02:46.1]} 18... Rad8 {[%clk 0:02:11.5]} 19. Qh4 {[%clk 0:02:45.8]}
19... h5 {[%clk 0:02:10.3]} 20. Kg1 {[%clk 0:02:39.9]} 20... Ng4 {[%clk
0:02:06]} 21. Rf1 {[%clk 0:02:39.1]} 21... Qe5 {[%clk 0:02:05.1]} 22. Rg3 {[%clk
0:02:05.3]} 22... f5 {[%clk 0:02:02.8]} 23. Nd2 {[%clk 0:01:57.6]} 23... Qd4+
{[%clk 0:01:57.2]} 24. Kh1 {[%clk 0:01:57.3]} 24... Nf2+ {[%clk 0:01:56.7]} 25.
Rxf2 {[%clk 0:01:57.8]} 25... Qxh4 {[%clk 0:01:55.4]} 26. Rxg6+ {[%clk
0:01:58.4]} 26... Kh7 {[%clk 0:01:55]} 0-1

[Event "*** SCC Grand Prix: Titled Tuesday Blitz"]
[Site "Chess.com"]
[Date "2020.06.23"]
[Round "9"]
[White "Andrii_Prydun"]
[Black "iaraldinho"]
[Result "1-0"]
[WhiteElo "2401"]
[BlackElo "2525"]
[TimeControl "180+1"]
[EndTime "11:42:08 PDT"]
[Termination "Andrii_Prydun won by resignation"]

1. d4 {[%clk 0:03:00.9]} 1... f5 {[%clk 0:02:59.6]} 2. Nc3 {[%clk 0:02:53.7]}
2... Nf6 {[%clk 0:02:57.6]} 3. Bg5 {[%clk 0:02:51.7]} 3... e6 {[%clk 0:02:57.7]}
4. e4 {[%clk 0:02:51.3]} 4... fxe4 {[%clk 0:02:58.6]} 5. Nxe4 {[%clk 0:02:51.8]}
5... Be7 {[%clk 0:02:58.2]} 6. Bxf6 {[%clk 0:02:52.1]} 6... Bxf6 {[%clk
0:02:59.1]} 7. Nf3 {[%clk 0:02:52]} 7... O-O {[%clk 0:02:58.6]} 8. Bd3 {[%clk
0:02:52.4]} 8... d5 {[%clk 0:02:58.8]} 9. Nxf6+ {[%clk 0:02:52.4]} 9... Qxf6
{[%clk 0:02:59.7]} 10. Qe2 {[%clk 0:02:53]} 10... c5 {[%clk 0:02:59.6]} 11. c3
{[%clk 0:02:52.8]} 11... Nc6 {[%clk 0:02:59.7]} 12. O-O-O {[%clk 0:02:51.5]}
12... Bd7 {[%clk 0:02:56.9]} 13. Rhe1 {[%clk 0:02:47.4]} 13... cxd4 {[%clk
0:02:55.7]} 14. cxd4 {[%clk 0:02:47.7]} 14... Rac8 {[%clk 0:02:56]} 15. Kb1
{[%clk 0:02:47.9]} 15... a6 {[%clk 0:02:54.8]} 16. Ne5 {[%clk 0:02:45.9]} 16...
Nxe5 {[%clk 0:02:53.5]} 17. dxe5 {[%clk 0:02:44.2]} 17... Qxf2 {[%clk
0:02:53.1]} 18. Qh5 {[%clk 0:02:43.8]} 18... h6 {[%clk 0:01:47.5]} 19. Qg6
{[%clk 0:02:37.3]} 19... Rf4 {[%clk 0:01:47.1]} 20. Rf1 {[%clk 0:02:25.3]} 20...
Qd4 {[%clk 0:01:42.7]} 21. g3 {[%clk 0:02:24]} 21... Rf5 {[%clk 0:01:21.6]} 22.
Bxf5 {[%clk 0:02:20.2]} 22... exf5 {[%clk 0:01:21.4]} 23. Rxd4 {[%clk
0:02:19.6]} 1-0

[Event "*** SCC Grand Prix: Titled Tuesday Blitz"]
[Site "Chess.com"]
[Date "2020.06.23"]
[Round "9"]
[White "Alindsay211"]
[Black "JozefKneht"]
[Result "1-0"]
[WhiteElo "2328"]
[BlackElo "2428"]
[TimeControl "180+1"]
[EndTime "11:42:18 PDT"]
[Termination "Alindsay211 won by resignation"]

1. e4 {[%clk 0:03:00.9]} 1... e5 {[%clk 0:02:58.2]} 2. Nf3 {[%clk 0:03:01]} 2...
Nc6 {[%clk 0:02:57.8]} 3. Bb5 {[%clk 0:03:01.7]} 3... a6 {[%clk 0:02:57.9]} 4.
Bxc6 {[%clk 0:03:02.1]} 4... dxc6 {[%clk 0:02:57.6]} 5. O-O {[%clk 0:03:02.8]}
5... f6 {[%clk 0:02:57.9]} 6. d4 {[%clk 0:03:02.2]} 6... exd4 {[%clk 0:02:58.8]}
7. Nxd4 {[%clk 0:02:58.8]} 7... c5 {[%clk 0:02:58.9]} 8. Nb3 {[%clk 0:02:58.8]}
8... Qxd1 {[%clk 0:02:59.1]} 9. Rxd1 {[%clk 0:02:59.2]} 9... Bg4 {[%clk
0:02:59.2]} 10. f3 {[%clk 0:02:58.5]} 10... Bd7 {[%clk 0:02:59.8]} 11. Be3
{[%clk 0:02:58.6]} 11... b6 {[%clk 0:02:54]} 12. Nc3 {[%clk 0:02:58.9]} 12...
O-O-O {[%clk 0:02:50.9]} 13. a4 {[%clk 0:02:56.9]} 13... Ne7 {[%clk 0:02:41.8]}
14. a5 {[%clk 0:02:56.3]} 14... c4 {[%clk 0:02:39.1]} 15. Nd2 {[%clk 0:02:42.6]}
15... b5 {[%clk 0:02:39.2]} 16. b3 {[%clk 0:02:38]} 16... cxb3 {[%clk 0:02:38]}
17. Nxb3 {[%clk 0:02:30.5]} 17... Nc6 {[%clk 0:02:37.4]} 18. Bc5 {[%clk
0:02:26.6]} 18... Nb4 {[%clk 0:02:16.2]} 19. Nd5 {[%clk 0:02:02.8]} 19... Nxd5
{[%clk 0:02:00.8]} 20. exd5 {[%clk 0:02:03.7]} 20... Kb8 {[%clk 0:01:49.7]} 21.
d6 {[%clk 0:01:52.2]} 21... Bc8 {[%clk 0:01:44.7]} 22. dxc7+ {[%clk 0:01:50.8]}
1-0